bitfinex/quotes_ETHUSD_20260120
["timestamp","ask_amount","ask_price","bid_price","bid_amount"]
[1768896587233,12.33691098,3122.6,3122.0,12.00274669]
[1768896588742,12.33691098,3122.6,3122.1,0.528]
[1768896589509,12.33691098,3122.6,3122.0,12.00274669]
[1768896589710,12.33691098,3122.6,3122.1,0.528]
[1768896589911,12.33610898,3122.4,3122.1,0.528]
[1768896590637,12.33610898,3122.4,3121.9,0.002]
[1768896590841,12.33610898,3122.4,3122.0,0.528]
[1768896591740,12.33610898,3122.4,3121.9,12.00474669]
[1768896591911,12.33610898,3122.4,3122.1,0.528]
[1768896592821,13.69316919,3122.4,3122.1,0.528]
[1768896593751,13.69316919,3122.4,3122.1,0.43838339]
[1768896597341,12.46576195,3122.6,3122.1,12.1548946]
[1768896597528,12.46576195,3122.6,3122.1,0.43838339]
[1768896597938,12.46576195,3122.6,3121.9,0.002]
[1768896598120,12.46576195,3122.6,3122.0,0.528]
[1768896598323,12.46495995,3122.4,3121.9,0.002]
[1768896598551,12.46495995,3122.4,3121.5,11.71851121]
[1768896598552,12.46495995,3122.3,3121.5,0.002]
[1768896599161,12.46495995,3122.3,3121.5,0.53]
[1768896599338,5.42217486,3122.4,3121.5,0.53]
[1768896599339,12.46495995,3122.1,3121.5,0.53]
[1768896600729,12.46495995,3122.1,3121.5,0.002]
[1768896600963,12.46495995,3122.0,3121.5,0.002]
[1768896601668,12.46495995,3122.0,3121.1,0.53]
[1768896602151,12.46495995,3121.8,3121.1,0.53]
[1768896602348,12.46495995,3121.6,3121.1,0.53]
[1768896602554,1.56681375,3121.7,3121.1,12.24651121]
[1768896603259,14.0317737,3121.7,3121.1,12.24651121]
[1768896603559,1.56681375,3121.7,3121.1,12.24651121]
[1768896604054,4.99166428,3122.2,3121.4,11.71851121]
[1768896604241,12.46495995,3122.1,3121.4,11.71851121]
[1768896604619,12.46495995,3122.1,3121.4,0.002]
[1768896605460,12.46495995,3121.8,3121.1,0.002]
[1768896605651,12.46495995,3121.6,3121.1,0.002]
[1768896605859,12.46495995,3121.6,3121.1,11.71851121]
[1768896607047,12.46495995,3121.6,3121.1,0.002]
[1768896608651,12.46495995,3121.5,3121.1,0.002]
[1768896611973,12.46495995,3121.5,3121.1,11.71851121]
[1768896612470,12.46495995,3121.9,3121.1,11.71851121]
[1768896612677,14.0844682,3121.8,3121.1,11.71851121]
[1768896614476,12.46495995,3122.2,3121.2,11.71651121]
[1768896614774,12.46495995,3122.2,3121.4,11.71651121]
[1768896614939,3.20271407,3122.4,3121.4,11.71651121]
[1768896614940,12.46495995,3122.5,3121.4,11.71651121]
[1768896615941,12.46495995,3122.4,3121.5,0.528]
[1768896616146,12.46495995,3122.2,3121.5,0.528]
[1768896616342,1.88701137,3122.3,3121.5,12.24451121]
[1768896616659,12.46495995,3122.4,3121.5,12.24451121]
[1768896616850,12.46495995,3122.5,3121.5,12.24451121]
[1768896617747,12.46495995,3122.5,3121.5,3.7315341]
[1768896617981,0.000802,3122.6,3121.6,11.71651121]
[1768896617982,12.46576195,3122.6,3121.6,11.71651121]
[1768896618145,12.46576195,3122.6,3121.8,11.71651121]
[1768896618349,12.46576195,3122.6,3122.0,11.71651121]
[1768896618646,12.46495995,3122.5,3121.9,0.528]
[1768896619077,12.46495995,3122.5,3122.0,0.528]
[1768896619586,12.46495995,3122.5,3121.8,11.71651121]
[1768896619772,12.46495995,3122.3,3121.9,0.528]
[1768896620874,1.56682291,3122.4,3121.9,12.24451121]
[1768896621267,0.000802,3122.6,3121.9,12.24451121]
[1768896621804,12.46576195,3122.6,3121.9,12.24451121]
[1768896623064,12.46495995,3122.5,3121.9,12.24451121]
[1768896623371,12.46495995,3122.5,3121.8,0.528]
[1768896624747,11.7623364,3122.5,3121.5,11.82262256]
[1768896624953,11.7623364,3122.5,3121.6,0.528]
[1768896624954,11.7623364,3122.3,3121.6,0.528]
[1768896625154,11.7623364,3122.3,3121.6,12.35062256]
[1768896625885,11.7623364,3122.2,3121.4,11.82462256]
[1768896626110,11.7623364,3122.2,3121.5,0.528]
[1768896626307,11.7623364,3122.0,3121.5,0.528]
[1768896626609,11.7623364,3122.0,3121.4,0.002]
[1768896627100,11.7623364,3122.0,3121.4,11.82462256]
[1768896629477,11.7623364,3122.0,3121.4,0.002]
[1768896629994,11.7623364,3121.9,3121.4,0.002]
[1768896630174,11.7623364,3121.7,3121.4,0.002]
[1768896631282,11.7623364,3121.5,3121.0,0.002]
[1768896631471,11.7623364,3121.5,3120.7,11.82262256]
[1768896631890,11.7623364,3121.5,3120.7,12.35062256]
[1768896632164,11.7623364,3121.3,3120.7,12.35062256]
[1768896633610,11.7623364,3121.3,3120.5,0.0008028]
[1768896633910,11.7623364,3121.3,3120.5,0.5288028]
[1768896634675,11.7623364,3121.3,3120.5,12.35142536]
[1768896636318,11.7623364,3121.2,3120.5,0.5288028]
[1768896636613,13.97352476,3121.2,3120.5,0.5288028]
[1768896636910,13.97352476,3121.2,3120.5,12.35142536]
[1768896638977,11.7623364,3121.4,3120.5,12.35142536]
[1768896639172,0.528,3121.6,3120.6,11.82262256]
[1768896639399,12.2903364,3121.7,3120.6,11.82262256]
[1768896640688,12.2903364,3121.7,3120.8,11.82262256]
[1768896640873,15.49373307,3121.7,3121.0,11.82262256]
[1768896641078,13.31170971,3121.6,3121.0,11.82262256]
[1768896641677,13.31170971,3121.6,3120.9,0.528]
[1768896642087,13.31170971,3121.6,3120.8,0.002]
[1768896642776,11.9975881,3121.4,3120.8,0.002]
[1768896644408,13.54696141,3121.6,3120.8,11.86540939]
[1768896644884,1.24190813,3121.5,3120.8,11.86540939]
[1768896645295,13.23949623,3121.5,3120.8,11.86540939]
[1768896645998,13.23949623,3121.5,3120.8,0.002]
[1768896647108,11.9975881,3121.4,3120.8,0.002]
[1768896648315,11.9975881,3121.4,3120.8,11.86540939]
[1768896648488,13.32153772,3121.3,3120.8,0.002]
[1768896651085,13.84953772,3121.3,3120.8,0.002]
[1768896651745,11.9975881,3121.2,3120.8,0.002]
[1768896652313,11.9975881,3121.2,3120.5,0.0028028]
[1768896653223,11.9975881,3121.2,3120.8,0.002]
[1768896653427,11.83008119,3121.0,3120.5,0.0028028]
[1768896654815,11.83008119,3120.9,3120.5,0.0028028]
[1768896657605,11.83008119,3120.9,3120.5,12.85949235]
[1768896657921,13.53541714,3121.1,3120.5,12.85949235]
[1768896661126,0.528,3121.2,3120.5,12.85949235]
[1768896661933,12.35808119,3121.2,3120.5,12.85949235]
[1768896662138,12.35808119,3121.2,3120.5,13.38749235]
[1768896663403,11.83008119,3121.1,3120.5,13.38749235]
[1768896663603,11.83008119,3121.1,3120.5,0.5308028]
[1768896663828,11.83008119,3120.9,3120.5,0.5308028]
[1768896664029,11.83008119,3120.9,3120.5,0.0028028]
[1768896666107,11.83008119,3120.9,3120.8,0.002]
[1768896666646,0.001,3120.9,3120.8,0.002]
[1768896667955,11.83008119,3121.1,3120.8,0.002]
[1768896667956,1.32394962,3121.3,3120.9,12.85668955]
[1768896668139,11.83008119,3121.5,3120.9,12.85668955]
[1768896669351,12.35808119,3121.6,3120.9,12.85668955]
[1768896669513,11.83008119,3121.6,3120.9,12.85668955]
[1768896670618,0.528,3121.7,3120.9,12.85668955]
[1768896671364,0.528,3121.7,3121.0,0.528]
[1768896671657,0.528,3121.7,3121.1,14.19515851]
[1768896672216,12.35808119,3122.0,3121.1,14.19515851]
[1768896672420,11.83008119,3122.0,3121.1,14.19515851]
[1768896672755,0.529,3122.3,3121.2,12.85668955]
[1768896674156,0.529,3122.3,3121.4,12.85668955]
[1768896674455,0.529,3122.3,3121.6,12.85668955]
[1768896674660,12.35908119,3122.3,3121.6,12.85668955]
[1768896675549,0.001,3122.3,3121.6,12.85668955]
[1768896678162,0.001,3122.0,3121.9,12.85668955]
[1768896678331,0.000802,3122.6,3122.0,12.85668955]
[1768896678527,0.000802,3122.6,3122.2,12.85668955]
[1768896680643,11.83088319,3122.6,3122.1,14.19515851]
[1768896680837,11.83088319,3122.6,3122.1,12.85668955]
[1768896681066,11.83008119,3122.5,3121.5,12.85668955]
[1768896681273,11.83008119,3122.5,3121.6,13.38468955]
[1768896682142,12.35808119,3122.5,3121.6,13.38468955]
[1768896682333,11.83008119,3122.4,3121.6,12.85668955]
[1768896684474,12.67117457,3122.2,3121.6,12.85668955]
[1768896684672,3.20276719,3122.3,3121.1,5.13846896]
[1768896684673,12.67117457,3121.9,3121.2,12.02128899]
[1768896684875,12.67117457,3121.9,3121.0,12.02128899]
[1768896685035,12.67117457,3121.9,3121.0,13.27641789]
[1768896686698,12.67117457,3121.8,3121.0,13.27641789]
[1768896687795,12.67117457,3121.8,3120.9,0.528]
[1768896688089,12.67117457,3121.8,3120.9,12.54928899]
[1768896688585,3.20338277,3121.7,3120.9,12.54928899]
[1768896688785,12.67117457,3121.6,3120.9,12.54928899]
[1768896689176,12.67117457,3121.6,3120.8,0.002]
[1768896689487,12.67117457,3121.4,3120.8,0.002]
[1768896689802,10.13814831,3121.7,3120.8,0.002]
[1768896689803,12.67117457,3121.2,3121.0,0.002]
[1768896690168,12.67117457,3121.2,3120.8,0.002]
[1768896690678,12.67117457,3121.1,3120.8,0.002]
[1768896690850,13.51329288,3121.1,3120.8,0.002]
[1768896691057,12.67117457,3121.1,3120.8,0.002]
[1768896692903,12.67117457,3120.9,3120.8,0.002]
[1768896693110,12.67117457,3121.2,3120.8,0.002]
[1768896694764,3.20399859,3121.1,3120.5,0.0028028]
[1768896694964,12.67117457,3120.9,3120.5,0.0028028]
[1768896695192,13.19917457,3120.9,3120.5,0.0028028]
[1768896695398,0.528,3120.9,3120.5,12.02409179]
[1768896695770,13.19917457,3120.9,3120.5,0.0028028]
[1768896696694,16.40346384,3120.9,3120.5,0.0028028]
[1768896696903,14.50231192,3120.8,3120.5,0.0028028]
[1768896697779,14.50231192,3120.8,3120.3,0.0028016]
[1768896698569,12.67117457,3120.3,3119.6,8.82386001]
[1768896698873,0.0008016,3120.4,3119.1,0.00080104]
[1768896698874,15.87630277,3120.0,3119.4,12.02209043]
[1768896699080,12.67117457,3119.9,3119.4,12.02209043]
[1768896699280,14.57931767,3119.8,3119.4,0.00080144]
[1768896699496,14.58011911,3119.8,3119.3,0.002]
[1768896699687,14.58011911,3119.8,3119.3,0.00023688]
[1768896700488,14.58011911,3119.8,3119.3,12.02152587]
[1768896700711,14.58011911,3119.8,3119.3,0.00023688]
[1768896700908,14.12918648,3119.7,3119.3,0.00023688]
[1768896701105,12.67117457,3119.6,3119.3,0.00023688]
[1768896702214,1.45801191,3119.7,3119.3,0.00023688]
[1768896703189,14.45726518,3119.7,3119.3,0.00023688]
[1768896703513,17.66271028,3119.7,3119.3,0.00023688]
[1768896703695,14.76560444,3119.6,3119.3,0.00023688]
[1768896704291,12.99925327,3119.6,3119.3,0.00023688]
[1768896704508,14.45726518,3119.7,3119.3,0.00023688]
[1768896705316,1.45801191,3119.7,3119.3,0.00023688]
[1768896705502,0.00080144,3119.8,3119.3,0.00023688]
[1768896705704,12.99925327,3119.7,3119.3,0.00023688]
[1768896707117,13.00005471,3119.8,3119.3,0.00023688]
[1768896708289,0.00080144,3119.8,3119.3,0.00023688]
[1768896708607,0.00080144,3119.8,3119.4,12.88273325]
[1768896713996,0.00080144,3119.8,3119.7,0.002]
[1768896714513,12.879181,3119.8,3119.7,0.002]
[1768896714715,12.879181,3119.8,3119.4,0.002]
[1768896717396,16.08454553,3119.8,3119.4,0.002]
[1768896717588,12.87837956,3119.6,3119.4,0.002]
[1768896717920,14.53963411,3119.7,3119.4,0.002]
[1768896718115,12.87837956,3119.7,3119.4,0.002]
[1768896718285,12.879181,3119.8,3119.4,0.002]
[1768896719422,12.879181,3119.8,3119.4,11.79146525]
[1768896720188,12.879181,3119.8,3119.4,0.002]
[1768896720845,0.00080144,3119.8,3119.4,11.79146525]
[1768896721406,12.879181,3119.8,3119.4,0.002]
[1768896721590,14.21909766,3119.7,3119.4,0.002]
[1768896722894,14.21909766,3119.7,3119.3,0.00023688]
[1768896723511,12.87837956,3119.6,3119.3,0.00023688]
[1768896724441,16.08395729,3119.6,3119.2,0.00280441]
[1768896724641,12.87837956,3119.4,3119.1,0.00080104]
[1768896724804,12.87837956,3119.4,3119.0,0.002]
[1768896725010,12.87837956,3119.4,3118.8,11.78946525]
[1768896726050,2.59281477,3119.5,3118.8,11.78946525]
[1768896726343,0.52980104,3119.5,3118.8,11.78946525]
[1768896726947,12.87837956,3119.4,3118.5,12.31746525]
[1768896727163,12.87837956,3119.4,3118.6,11.78946525]
[1768896727333,12.87837956,3119.4,3118.4,0.0028012]
[1768896727537,12.87837956,3119.4,3118.7,11.79026637]
[1768896727937,12.87837956,3119.4,3118.7,0.00080112]
[1768896728137,12.87837956,3119.2,3118.7,0.00080112]
[1768896728433,12.87837956,3119.0,3118.4,0.0028012]
[1768896729139,12.87837956,3119.0,3118.1,11.79226637]
[1768896729441,12.87918076,3118.8,3118.1,11.79226637]
[1768896730048,13.40718076,3118.8,3118.1,11.79226637]
[1768896730746,3.73517348,3118.8,3118.1,11.79226637]
[1768896730947,12.87837956,3118.7,3118.1,11.79226637]
[1768896731813,0.5288012,3118.8,3118.1,11.79226637]
[1768896732019,0.5288012,3118.8,3118.1,13.02449301]
[1768896732629,0.0008012,3118.8,3118.1,13.02449301]
[1768896732945,3.20717095,3118.8,3118.1,11.79226637]
[1768896733243,12.87918076,3118.8,3118.1,12.32026637]
[1768896733445,12.87918076,3118.8,3118.1,11.79226637]
[1768896734242,16.08554787,3118.8,3118.1,11.79226637]
[1768896735451,13.40637956,3118.7,3118.0,0.002]
[1768896735617,12.87837956,3118.4,3117.8,0.00080104]
[1768896736144,0.00080112,3118.5,3117.8,0.00080104]
[1768896736145,12.87837956,3118.0,3117.8,0.00080104]
[1768896736339,12.87837956,3118.0,3117.7,0.002]
[1768896736535,12.87837956,3118.0,3117.2,11.78946525]
[1768896736739,12.87837956,3118.0,3117.3,11.79226597]
[1768896737547,12.87837956,3118.0,3117.4,11.78946525]
[1768896737752,12.87837956,3118.0,3117.5,11.79026613]
[1768896738720,12.87837956,3117.9,3117.5,0.00080088]
[1768896739177,12.87918044,3117.9,3117.3,11.79226597]
[1768896739828,13.40718044,3117.9,3117.3,11.79226597]
[1768896740554,13.40718044,3117.9,3117.3,0.00280072]
[1768896740849,14.34788941,3117.8,3117.3,0.00280072]
[1768896741552,14.34788941,3117.8,3117.3,11.79226597]
[1768896741767,12.87837956,3117.8,3117.3,11.79226597]
[1768896741924,0.52880088,3117.9,3117.3,11.79226597]
[1768896742543,13.40718044,3117.9,3117.3,11.79226597]
[1768896742858,12.87837956,3117.8,3117.3,0.00280072]
[1768896743557,12.87837956,3117.8,3117.1,0.002]
[1768896743755,11.80967396,3117.6,3117.1,0.002]
[1768896744161,11.80967396,3117.6,3117.1,11.90732546]
[1768896744375,11.80967396,3117.6,3117.1,0.002]
[1768896745250,3.20761735,3117.6,3117.1,0.002]
[1768896745461,11.80967396,3117.5,3117.1,0.002]
[1768896745681,13.63216483,3117.4,3117.0,0.00280088]
[1768896745840,13.63216483,3117.4,3116.8,0.002]
[1768896746037,13.63296571,3117.4,3116.7,0.00080088]
[1768896746480,13.63296571,3117.4,3116.3,12.53559162]
[1768896746694,11.80967396,3117.0,3116.3,0.63026616]
[1768896746841,11.80967396,3116.4,3115.3,11.90532546]
[1768896747040,11.80967396,3116.2,3115.4,11.90532546]
[1768896747454,11.80967396,3116.1,3115.4,11.90532546]
[1768896748446,11.80967396,3116.1,3115.2,11.90532547]
[1768896749078,11.80967396,3115.5,3115.0,0.0219369]
[1768896749295,1.18104744,3115.4,3114.9,11.9061261]
[1768896749445,0.00080048,3115.6,3115.0,11.90532546]
[1768896749641,0.00080048,3115.6,3115.0,12.43432546]
[1768896750964,0.00080048,3115.6,3115.0,11.90532546]
[1768896751305,0.00080048,3115.6,3115.1,11.90532546]
[1768896751947,0.00080064,3115.9,3115.2,11.90532546]
[1768896752146,0.00080064,3115.9,3115.2,11.90612602]
[1768896752681,0.00080064,3116.2,3115.6,11.90532546]
[1768896753363,11.8104746,3116.2,3115.6,11.90532546]
[1768896753795,11.8104746,3116.2,3115.5,0.00080072]
[1768896754092,13.31240655,3116.2,3115.5,0.00080072]
[1768896754591,1.50273259,3116.2,3115.6,11.90532546]
[1768896756103,0.00080064,3116.2,3115.6,11.90532546]
[1768896758405,11.8104746,3116.2,3115.5,0.00080072]
[1768896758781,11.8104746,3116.2,3115.5,11.90612618]
[1768896760747,11.80967396,3114.3,3113.1,15.11828563]
[1768896760921,0.00080008,3114.1,3113.5,11.90532546]
[1768896761123,0.00080008,3114.1,3113.7,11.90532546]
[1768896761712,0.00080008,3114.1,3113.6,1.19061256]
[1768896761888,0.00080008,3114.1,3113.6,13.09593802]
[1768896762295,0.00080016,3114.7,3113.9,11.90532546]
[1768896762508,0.52980016,3114.7,3114.0,13.09665825]
[1768896762709,0.00080016,3114.7,3114.0,13.09665825]
[1768896763300,0.00080016,3114.7,3114.2,11.76655216]
[1768896764399,0.00080016,3114.7,3114.4,11.76655216]
[1768896764804,0.00080064,3115.3,3114.5,11.76655216]
[1768896765012,0.00080064,3115.3,3114.7,11.76655216]
[1768896766697,0.00080064,3115.3,3114.8,3.210479]
[1768896766921,0.00080064,3115.3,3114.9,11.76655216]
[1768896767608,0.00080064,3115.3,3114.9,11.59900305]
[1768896767808,0.00080064,3115.3,3114.7,14.97711614]
[1768896768011,0.00080064,3115.3,3114.8,0.93358158]
[1768896768317,11.76607522,3115.3,3114.4,0.529]
[1768896768641,11.76607522,3115.3,3114.4,3.73988849]
[1768896769020,11.76607522,3115.3,3114.4,3.73982036]
[1768896769811,11.76607522,3115.3,3113.4,3.21466539]
[1768896769812,0.00080008,3113.5,3112.2,14.97968331]
[1768896770041,0.529,3113.4,3112.3,11.76655216]
[1768896770342,0.00080008,3113.5,3112.3,12.29555216]
[1768896770845,0.00080008,3113.5,3112.4,9.63886389]
[1768896771009,0.00080008,3113.5,3112.5,12.78333855]
[1768896771212,0.00080016,3113.8,3112.6,11.76655216]
[1768896771410,0.00080016,3113.8,3113.2,11.76655216]
[1768896771635,0.00080016,3113.8,3113.2,12.29555216]
[1768896772360,0.00080016,3114.1,3113.5,11.76655216]
[1768896772565,0.00080016,3114.1,3113.4,0.00080024]
[1768896772566,0.00080016,3114.1,3113.6,13.4722874]
[1768896772762,0.00080016,3114.1,3113.6,16.68393409]
[1768896773953,0.00080016,3114.1,3113.7,12.83378839]
[1768896774125,0.00080024,3114.4,3113.7,12.83458863]
[1768896775364,0.00080024,3114.4,3113.8,16.04529844]
[1768896775664,0.00080024,3114.4,3113.9,1.10732773]
[1768896775866,0.00080024,3114.4,3113.7,0.00080024]
[1768896776071,0.00080024,3114.4,3113.7,0.52980024]
[1768896776426,12.44040736,3114.4,3113.7,0.00080024]
[1768896776639,12.44040736,3114.4,3113.7,3.21237649]
[1768896777061,12.44040736,3114.4,3113.7,0.00080024]
[1768896777226,12.44040736,3114.4,3113.7,3.21239975]
[1768896777426,12.44040736,3114.4,3113.7,5.30897332]
[1768896778163,0.00080024,3114.4,3113.8,12.83378839]
[1768896778466,0.00080024,3114.7,3114.0,12.83378839]
[1768896778661,0.00080024,3114.7,3114.0,12.83458871]
[1768896778963,0.00080024,3114.7,3114.0,14.0388645]
[1768896779668,0.00080024,3114.7,3114.2,12.83378839]
[1768896780564,0.00080024,3114.7,3114.0,4.4163498]
[1768896780565,0.00080024,3114.7,3114.0,4.41633757]
[1768896781142,0.00080024,3114.7,3114.1,12.83378839]
[1768896781331,0.52980064,3115.3,3114.2,12.83378839]
[1768896781536,0.00080064,3115.3,3114.4,12.83378839]
[1768896781743,0.00080064,3115.3,3112.5,12.83378839]
[1768896781744,12.43960712,3114.6,3112.5,12.83378839]
[1768896781941,0.00080024,3113.8,3112.9,12.83378839]
[1768896782165,0.00080024,3113.8,3112.8,3.2125227]
[1768896782472,0.00080024,3113.8,3112.8,16.04626009]
[1768896782640,0.00080024,3113.8,3112.8,16.57526009]
[1768896783032,0.00080024,3113.8,3113.1,3.21503063]
[1768896783566,0.00080024,3113.8,3113.2,12.83378839]
[1768896783750,0.00080024,3113.8,3113.3,16.04581421]
[1768896784075,0.00080024,3114.1,3113.4,12.83458871]
[1768896784266,0.00080024,3114.1,3113.5,1.60466145]
[1768896784760,0.00080024,3114.1,3113.4,0.00080032]
[1768896785835,0.00080032,3114.4,3113.6,12.83378839]
[1768896786038,22.749989,3114.3,3113.4,0.00080032]
[1768896786343,22.749989,3114.3,3112.2,12.83378839]
[1768896786344,12.43960712,3113.4,3112.2,12.83378839]
[1768896786657,12.43960712,3113.4,3112.3,1.28337884]
[1768896787341,12.43960712,3113.4,3111.9,0.531]
[1768896787536,12.43960712,3113.4,3112.0,3.21335826]
[1768896787751,12.43960712,3113.4,3111.9,0.531]
[1768896787752,12.43960712,3113.3,3111.9,3.74446549]
[1768896787937,12.43960712,3113.3,3111.9,0.531]
[1768896788441,12.43960712,3113.1,3112.6,0.002]
[1768896788669,13.73646783,3113.0,3112.6,0.002]
[1768896789079,13.73646783,3113.0,3112.3,0.002]
[1768896789542,13.73646783,3113.0,3111.9,0.002]
[1768896789744,13.73646783,3113.0,3110.7,3.38209494]
[1768896789745,12.43960712,3112.2,3109.4,12.83378839]
[1768896789942,12.43960712,3112.2,3108.8,0.0219369]
[1768896789943,12.43960712,3111.8,3110.1,12.83378839]
[1768896790193,12.96860712,3111.7,3110.1,12.83378839]
[1768896790486,12.43960712,3111.3,3110.0,0.004]
[1768896790644,12.43960712,3111.3,3109.2,3.74523742]
[1768896790645,0.0008,3110.4,3109.2,3.74523742]
[1768896790840,0.0008,3110.4,3108.9,12.83378839]
[1768896790841,12.96940712,3110.4,3108.9,12.83378839]
[1768896791178,13.73654783,3110.3,3109.0,1.60723298]
[1768896791487,13.73654783,3110.3,3108.6,0.529]
[1768896791488,12.43960712,3109.0,3104.8,0.1158]
[1768896791646,30.2335703,3109.7,3104.8,12.94958839]
[1768896791647,12.43960712,3107.3,3104.8,12.94958839]
[1768896791846,12.67317742,3106.0,3103.7,12.83378839]
[1768896792090,12.43960712,3105.7,3103.7,12.83378839]
[1768896792348,12.43960712,3105.4,3103.6,0.00183598]
[1768896792554,0.529,3105.6,3103.6,0.00183598]
[1768896792555,10.692092,3105.1,3103.8,0.121835]
[1768896792770,0.42945109,3105.7,3103.7,0.121835]
[1768896792771,12.96860712,3105.0,3103.7,0.121835]
[1768896792985,1.27231774,3105.9,3104.8,0.121835]
[1768896793166,0.529,3106.0,3104.1,0.529]
[1768896793376,0.529,3106.0,3104.0,12.83378839]
[1768896793377,0.128,3105.9,3104.0,12.83378839]
[1768896793560,12.43960712,3106.0,3104.0,12.28378839]
[1768896793909,22.23942912,3105.6,3103.6,0.00183598]
[1768896794044,15.19255003,3105.5,3103.6,0.00183598]
[1768896794467,6.77072018,3105.0,3102.5,0.0219369]
[1768896794753,12.43960712,3104.5,3102.5,0.0219369]
[1768896794968,12.43960712,3104.1,3102.5,0.0219369]
[1768896795172,15.82301512,3103.9,3102.5,0.0219369]
[1768896795426,6.77072018,3102.3,3097.8,3.22806564]
[1768896795628,6.77072018,3099.6,3095.2,2.82231405]
[1768896795745,0.64508759,3099.3,3096.3,14.43829746]
[1768896795947,30.0,3100.2,3096.0,2.09885161]
[1768896795948,0.128,3098.2,3096.4,1.69826586]
[1768896796252,1.57932269,3095.2,3094.8,0.74757997]
[1768896796447,6.344323,3096.7,3094.0,12.83378839]
[1768896796681,0.68987202,3098.1,3094.1,1.28337884]
[1768896796682,0.128,3096.4,3094.1,1.28337884]
[1768896796895,20.53633,3096.5,3093.5,13.36278839]
[1768896796896,5.887636,3096.5,3093.5,13.36278839]
[1768896797051,0.6873323,3096.6,3094.3,12.83378839]
[1768896797263,12.90572368,3099.4,3092.9,19.39926924]
[1768896797264,0.41825539,3097.0,3093.9,12.83378839]
[1768896797460,0.529,3098.6,3095.1,12.83378839]
[1768896797649,0.05,3098.7,3095.7,12.83378839]
[1768896797848,12.43960712,3098.2,3094.0,16.06580048]
[1768896798154,0.128,3098.3,3094.9,12.83378839]
[1768896798364,0.3908594,3098.2,3095.0,1.28337884]
[1768896798568,12.43960712,3098.0,3093.3,12.83378839]
[1768896798764,0.70246438,3099.1,3092.6,0.6524983]
[1768896798765,0.39800215,3098.1,3094.4,12.83378839]
[1768896798972,12.43960712,3098.8,3095.8,6.46036564]
[1768896799174,30.0,3098.6,3095.9,1.17603656]
[1768896799377,20.710179,3098.6,3095.9,1.17603656]
[1768896799596,1.24396071,3098.7,3096.1,1.62374166]
[1768896799760,12.56760712,3099.2,3095.9,0.64603656]
[1768896799955,12.56760712,3099.2,3095.2,3.23075559]
[1768896799956,21.116404,3098.1,3095.4,0.53]
[1768896800182,3.145656,3098.1,3094.3,12.83378839]
[1768896800372,12.43960712,3098.2,3094.3,12.83378839]
[1768896800373,8.550532,3097.9,3094.5,6.80508652]
[1768896800687,8.550532,3097.9,3094.3,16.06552699]
[1768896800688,12.43960712,3097.2,3093.4,12.83378839]
[1768896800855,12.43960712,3097.2,3092.6,0.6524983]
[1768896800856,12.43960712,3096.6,3093.5,0.53]
[1768896801053,12.56760712,3096.2,3093.4,0.53]
[1768896801252,26.74252612,3095.8,3092.6,0.6524983]
[1768896801458,12.56760712,3095.0,3092.6,0.6524983]
[1768896801679,8.313296,3094.7,3092.7,0.53]
[1768896801874,13.836167,3094.6,3092.6,0.6524983]
[1768896802076,1.83034807,3094.5,3094.4,0.002]
[1768896802282,4.93051208,3095.5,3093.5,0.53]
[1768896802468,12.43960712,3096.0,3092.7,6.46684126]
[1768896802668,21.66252874,3095.9,3092.7,6.46684126]
[1768896802859,12.78265159,3095.8,3092.9,21.454624]
[1768896803059,12.43960712,3097.1,3093.1,19.382535]
[1768896803288,0.53,3097.2,3094.2,7.144512]
[1768896803487,28.085894,3097.8,3094.6,9.594185]
[1768896803688,24.894124,3097.8,3094.6,6.12696]
[1768896803888,14.530309,3097.8,3094.8,18.57985847]
[1768896804074,14.530309,3097.8,3094.7,9.69399294]
[1768896804075,5.3462886,3097.8,3095.0,11.71104847]
[1768896804282,0.58762886,3097.7,3095.1,3.30134725]
[1768896804480,0.58762886,3097.7,3095.2,17.724786]
[1768896804666,0.58762886,3097.7,3095.0,11.71104847]
[1768896804862,0.58762886,3097.7,3095.1,0.53]
[1768896805087,0.58762886,3097.7,3095.3,6.80508652]
[1768896805396,3.22684737,3099.0,3096.2,27.928911]
[1768896805605,3.22591051,3099.9,3096.5,0.128]
[1768896805807,3.22591051,3099.9,3097.0,9.68679366]
[1768896806018,3.22580645,3100.0,3097.7,6.80508652]
[1768896806308,0.32258065,3100.0,3097.8,1.21150865]
[1768896806512,3.2249742,3100.8,3097.9,24.56501847]
[1768896806717,3.22674447,3101.3,3098.6,21.547366]
[1768896807014,0.00225,3101.3,3098.9,30.0]
[1768896807187,2.32521,3101.2,3099.0,0.531]
[1768896807387,0.87764295,3101.1,3099.1,0.531]
[1768896807686,0.00225,3101.3,3099.1,0.531]
[1768896807908,0.00225,3101.3,3099.3,6.45307004]
[1768896808480,0.00225,3101.3,3099.4,6.80508652]
[1768896809018,0.00225,3101.3,3099.5,3.82228]
[1768896809203,0.00225,3101.3,3099.7,3.24948]
[1768896809513,0.00225,3101.3,3098.5,6.80508652]
[1768896809708,0.00225,3101.3,3099.2,3.22659585]
[1768896809912,0.00225,3101.3,3099.0,19.48452374]
[1768896810217,0.00225,3101.3,3099.1,21.281181]
[1768896810400,0.00225,3101.3,3099.3,14.878844]
[1768896810580,0.00225,3101.3,3099.4,2.69939305]
[1768896810779,0.00225,3101.3,3099.3,14.5]
[1768896811098,0.00225,3101.3,3099.4,0.531]
[1768896811305,0.00225,3101.3,3099.3,14.5]
[1768896811487,0.00225,3101.3,3099.5,0.531]
[1768896811885,0.00225,3101.3,3099.6,3.22622273]
[1768896812088,0.00225,3101.3,3099.7,0.37572227]
[1768896812613,0.00225,3101.3,3099.8,0.53]
[1768896814210,0.00225,3101.3,3099.9,6.45182102]
[1768896814484,0.00225,3101.3,3100.0,0.531]
[1768896814919,0.00225,3101.3,3099.7,0.37572227]
[1768896815231,0.00225,3101.3,3099.8,6.98300206]
[1768896815395,0.00225,3101.3,3099.8,10.20901664]
[1768896815580,0.00225,3101.3,3099.8,6.45200206]
[1768896815780,0.00225,3101.3,3099.9,0.53]
[1768896816182,0.00225,3101.3,3100.0,3.22580645]
[1768896816626,0.00225,3101.3,3100.1,0.53]
[1768896816826,0.00225,3101.3,3099.8,3.22600811]
[1768896817032,0.00225,3101.3,3100.2,0.53]
[1768896817394,21.679254,3101.1,3098.9,3.22690979]
[1768896817594,3.22076751,3101.0,3099.0,0.53]
[1768896817905,0.00225,3101.3,3099.0,0.53]
[1768896818226,0.00225,3101.3,3099.1,6.45348648]
[1768896818520,0.00225,3101.3,3099.1,24.61802143]
[1768896818827,0.00225,3101.3,3099.2,14.5]
[1768896819285,11.71177847,3101.1,3098.3,11.71104847]